fUST/lending_fUST_20250221
["ID","MTS","AMOUNT","RATE_DAILY","PERIOD"]
[353886143,1740112241328,-500.0,0.0001378,2]
[353886144,1740112241338,-933.1,0.0001378,2]
[353886145,1740112241347,-950.54,0.0001378,2]
[353886146,1740112241357,-12368.39,0.0001378,2]
[353886147,1740112241367,-5183.19,0.0001378,2]
[353886148,1740112241376,-500.0,0.0001378,2]
[353886149,1740112241386,-29788.38,0.0001378,2]
[353886150,1740112241395,-915.53,0.0001378,2]
[353886151,1740112241405,-712.21,0.0001378,2]
[353886152,1740112241414,-2828.99,0.0001378,2]
[353886153,1740112241423,-1498.22,0.0001378,2]
[353886154,1740112241432,-500.0,0.0001378,2]
[353886155,1740112241442,-1569.7,0.0001378,2]
[353886156,1740112241451,-504.64122037,0.0001378,2]
[353886157,1740112241460,-1107.5,0.0001378,2]
[353886158,1740112241469,-500.0,0.0001378,2]
[353886159,1740112241479,-500.0,0.0001378,2]
[353886160,1740112241488,-3081.86,0.0001378,2]
[353886161,1740112241497,-1013.92,0.0001378,2]
[353886162,1740112241506,-500.0,0.0001378,2]
[353886163,1740112241516,-503.93101736,0.0001378,2]
[353886164,1740112241525,-500.0,0.0001378,2]
[353886165,1740112241534,-553.77,0.0001378,2]
[353886166,1740112241543,-838.68,0.0001378,2]
[353886167,1740112241552,-500.0,0.0001378,2]
[353886168,1740112241561,-500.0,0.0001378,2]
[353886169,1740112241571,-702.91,0.0001378,2]
[353886170,1740112241580,-1636.13,0.0001378,2]
[353886171,1740112241590,-518.65,0.0001378,2]
[353886172,1740112241599,-500.0,0.0001378,2]
[353886173,1740112241608,-1616.94,0.0001378,2]
[353886174,1740112241618,-621.21,0.0001378,2]
[353886175,1740112241627,-503.83248927,0.0001378,2]
[353886176,1740112241636,-500.0,0.0001378,2]
[353886177,1740112241646,-1891.55,0.0001378,2]
[353886178,1740112241655,-2200.03,0.0001378,2]
[353886179,1740112241664,-500.0,0.0001378,2]
[353886180,1740112241674,-584.08,0.0001378,2]
[353886181,1740112241683,-500.0,0.0001378,2]
[353886182,1740112241692,-1463.98,0.0001378,2]
[353886183,1740112241700,-4734.85,0.0001378,2]
[353886184,1740112241709,-500.0,0.0001378,2]
[353886185,1740112241719,-500.0,0.0001378,2]
[353886186,1740112241728,-709.19,0.0001378,2]
[353886187,1740112241738,-500.0,0.0001378,2]
[353886188,1740112241747,-500.0,0.0001378,2]
[353886189,1740112241756,-500.0,0.0001378,2]
[353886190,1740112241765,-512.35017562,0.0001378,2]
[353886191,1740112241775,-500.0,0.0001378,2]
[353886192,1740112241787,-1788.15,0.0001378,2]
[353886193,1740112241797,-500.0,0.0001378,2]
[353886194,1740112241806,-14987.05,0.0001378,2]
[353886195,1740112241815,-500.0,0.0001378,2]
[353886196,1740112241826,-500.0,0.0001378,2]
[353886197,1740112241835,-500.0,0.0001378,2]
[353886198,1740112241845,-500.0,0.0001378,2]
[353886199,1740112241854,-1000.0,0.000138,2]
[353886200,1740112241864,-1000.0,0.000138,3]
[353886201,1740112241874,-1000.0,0.000138,4]
[353886202,1740112241884,-1000.0,0.000138,5]
[353886203,1740112241893,-1004.9,0.000138,6]
[353886204,1740112241903,-710.37029,0.000138,2]
[353886205,1740112241912,-500.0,0.00013863,2]
[353886206,1740112241922,-500.0,0.00013863,2]
[353886207,1740112241931,-500.0,0.00013863,2]
[353886208,1740112241940,-1333.54,0.00013863,2]
[353886209,1740112241950,-500.0,0.00013863,2]
[353886210,1740112241959,-500.0,0.00013863,2]
[353886211,1740112241968,-500.0,0.00013863,2]
[353886212,1740112241977,-640.02,0.00013863,2]
[353886213,1740112241986,-500.0,0.00013863,2]
[353886214,1740112241996,-500.0,0.00013863,2]
[353886215,1740112242005,-500.0,0.00013863,2]
[353886216,1740112242014,-812.91,0.00013863,2]
[353886217,1740112242023,-500.0,0.00013863,2]
[353886218,1740112242032,-500.0,0.00013863,2]
[353886219,1740112242041,-500.0,0.00013863,2]
[353886220,1740112242051,-500.0,0.00013863,2]
[353886221,1740112242060,-500.0,0.00013863,2]
[353886222,1740112242070,-500.0,0.00013863,2]
[353886223,1740112242079,-580.29,0.00013863,2]
[353886224,1740112242088,-500.0,0.00013863,2]
[353886225,1740112242097,-500.0,0.00013863,2]
[353886226,1740112242106,-974.15,0.00013863,2]
[353886227,1740112242115,-500.0,0.00013863,2]
[353886228,1740112242124,-500.0,0.00013863,2]
[353886229,1740112242133,-500.0,0.00013863,2]
[353886230,1740112242142,-500.0,0.00013863,2]
[353886231,1740112242151,-950.86,0.00013863,2]
[353886232,1740112242161,-500.0,0.00013863,2]
[353886233,1740112242170,-322.90528435,0.00013863,2]
[353886234,1740112242179,-500.0,0.00013863,2]
[353886235,1740112242188,-718.47,0.00013863,2]
[353886236,1740112242197,-596.26,0.00013863,2]
[353886237,1740112242206,-500.0,0.00013863,2]
[353886238,1740112242215,-506.24042637,0.00013863,2]
[353886239,1740112242224,-640.49,0.00013863,2]
[353886240,1740112242233,-500.0,0.00013863,2]
[353886241,1740112242242,-500.0,0.00013863,2]
[353886242,1740112242251,-500.0,0.00013863,2]
[353886243,1740112242260,-500.0,0.00013863,2]
[353886244,1740112242269,-500.0,0.00013863,2]
[353886245,1740112242278,-402.1478177,0.00013863,2]
[353886246,1740112242288,-500.0,0.00013863,2]
[353886247,1740112242297,-500.0,0.00013863,2]
[353886248,1740112242305,-500.0,0.00013863,2]
[353886249,1740112242315,-500.0,0.00013863,2]
[353886250,1740112242324,-500.0,0.00013863,2]
[353886251,1740112242333,-6912.66,0.00013863,2]
[353886252,1740112242342,-598.64,0.00013863,2]
[353886253,1740112242352,-2126.12,0.00013863,2]
[353886255,1740112242361,-2057.23,0.00013863,2]
[353886257,1740112242371,-1180.77,0.00013863,2]
[353886259,1740112242381,-500.0,0.00013863,2]
[353886261,1740112242390,-500.0,0.00013863,2]
[353886263,1740112242400,-500.0,0.00013863,2]
[353886265,1740112242409,-3110.89,0.00013863,2]
[353886266,1740112242418,-1063.8,0.00013863,2]
[353886268,1740112242428,-500.0,0.00013863,2]
[353886269,1740112242438,-1000.0,0.00013863,2]
[353886270,1740112242447,-500.0,0.00013863,2]
[353886271,1740112242457,-579.65,0.00013863,2]
[353886272,1740112242467,-1893.75,0.00013863,2]
[353886273,1740112242476,-1155.97,0.00013863,2]
[353886274,1740112242486,-500.0,0.00013863,2]
[353886275,1740112242495,-500.0,0.00013863,2]
[353886276,1740112242504,-933.1,0.00013863,2]
[353886277,1740112242514,-950.54,0.00013863,2]
[353886278,1740112242523,-12368.39,0.00013863,2]
[353886279,1740112242533,-5183.19,0.00013863,2]
[353886280,1740112242542,-500.0,0.00013863,2]
[353886281,1740112242551,-29788.38,0.00013863,2]
[353886282,1740112242561,-915.53,0.00013863,2]
[353886283,1740112242570,-712.21,0.00013863,2]
[353886284,1740112242582,-2828.99,0.00013863,2]
[353886285,1740112242592,-1498.22,0.00013863,2]
[353886286,1740112242602,-504.99505626,0.00013863,2]
[353886287,1740112242611,-1569.7,0.00013863,2]
[353886288,1740112242621,-1107.5,0.00013863,2]
[353886289,1740112242630,-500.0,0.00013863,2]
[353886290,1740112242639,-500.0,0.00013863,2]
[353886291,1740112242648,-3081.86,0.00013863,2]
[353886292,1740112242657,-1013.92,0.00013863,2]
[353886293,1740112242666,-500.0,0.00013863,2]
[353886294,1740112242675,-500.0,0.00013863,2]
[353886296,1740112242685,-553.77,0.00013863,2]
[353886297,1740112242694,-838.68,0.00013863,2]
[353886298,1740112242704,-500.0,0.00013863,2]
[353886299,1740112242713,-500.0,0.00013863,2]
[353886300,1740112242722,-702.91,0.00013863,2]
[353886301,1740112242732,-1636.13,0.00013863,2]
[353886302,1740112242741,-518.65,0.00013863,2]
[353886303,1740112242750,-500.0,0.00013863,2]
[353886304,1740112242759,-1616.94,0.00013863,2]
[353886305,1740112242769,-621.21,0.00013863,2]
[353886306,1740112242781,-505.02935806,0.00013863,2]
[353886307,1740112242791,-1891.55,0.00013863,2]
[353886308,1740112242800,-2200.03,0.00013863,2]
[353886309,1740112242809,-500.0,0.00013863,2]
[353886310,1740112242819,-584.08,0.00013863,2]
[353886311,1740112242828,-500.0,0.00013863,2]
[353886312,1740112242838,-1463.98,0.00013863,2]
[353886313,1740112242847,-4734.85,0.00013863,2]
[353886314,1740112242858,-500.0,0.00013863,2]
[353886315,1740112242867,-500.0,0.00013863,2]
[353886316,1740112242876,-709.19,0.00013863,2]
[353886317,1740112242886,-500.0,0.00013863,2]
[353886318,1740112242895,-500.0,0.00013863,2]
[353886319,1740112242904,-500.0,0.00013863,2]
[353886320,1740112242914,-500.0,0.00013863,2]
[353886321,1740112242924,-1788.15,0.00013863,2]
[353886322,1740112242933,-500.0,0.00013863,2]
[353886323,1740112242942,-14987.05,0.00013863,2]
[353886325,1740112242951,-500.0,0.00013863,2]
[353886327,1740112242960,-500.0,0.00013863,2]
[353886328,1740112242969,-500.0,0.00013863,2]
[353886329,1740112242978,-500.0,0.00013863,2]
[353886330,1740112242988,-156.4341794,0.0001389,2]
[353886331,1740112242996,-800.01741818,0.00013896,2]
[353886332,1740112243006,-151.0,0.000139,2]
[353886333,1740112243015,-500.0,0.00013945,2]
[353886334,1740112243024,-500.0,0.00013945,2]
[353886335,1740112243034,-500.0,0.00013945,2]
[353886336,1740112243044,-1333.54,0.00013945,2]
[353886337,1740112243053,-500.0,0.00013945,2]
[353886338,1740112243062,-500.0,0.00013945,2]
[353886339,1740112243074,-500.0,0.00013945,2]
[353886340,1740112243086,-640.02,0.00013945,2]
[353886341,1740112243096,-500.0,0.00013945,2]
[353886342,1740112243106,-587.41334847,0.00013945,2]
[353886343,1740112243115,-812.91,0.00013945,2]
[353886344,1740112243124,-500.0,0.00013945,2]
[353886345,1740112243134,-500.0,0.00013945,2]
[353886346,1740112243144,-500.0,0.00013945,2]
[353886347,1740112243153,-500.0,0.00013945,2]
[353886348,1740112243162,-500.0,0.00013945,2]
[353886349,1740112243172,-500.0,0.00013945,2]
[353886350,1740112243181,-580.29,0.00013945,2]
[353886351,1740112243191,-500.0,0.00013945,2]
[353886352,1740112243200,-500.0,0.00013945,2]
[353886353,1740112243209,-974.15,0.00013945,2]
[353886354,1740112243219,-500.0,0.00013945,2]
[353886355,1740112243228,-500.0,0.00013945,2]
[353886356,1740112243237,-500.0,0.00013945,2]
[353886357,1740112243247,-500.0,0.00013945,2]
[353886358,1740112243257,-950.86,0.00013945,2]
[353886359,1740112243266,-500.0,0.00013945,2]
[353886360,1740112243276,-500.0,0.00013945,2]
[353886361,1740112243286,-718.47,0.00013945,2]
[353886362,1740112243295,-596.26,0.00013945,2]
[353886363,1740112243304,-500.0,0.00013945,2]
[353886364,1740112243314,-640.49,0.00013945,2]
[353886365,1740112243323,-500.0,0.00013945,2]
[353886366,1740112243332,-500.0,0.00013945,2]
[353886367,1740112243341,-500.0,0.00013945,2]
[353886368,1740112243351,-500.0,0.00013945,2]
[353886369,1740112243360,-500.0,0.00013945,2]
[353886370,1740112243382,-500.0,0.00013945,2]
[353886371,1740112243392,-500.0,0.00013945,2]
[353886372,1740112243402,-500.0,0.00013945,2]
[353886373,1740112243411,-213.92220593,0.00013945,2]
[353886374,1740112243515,-500.0,0.00013945,2]
[353886375,1740112243526,-6912.66,0.00013945,2]
[353886376,1740112243535,-598.64,0.00013945,2]
[353886377,1740112243545,-2126.12,0.00013945,2]
[353886378,1740112243555,-2057.23,0.00013945,2]
[353886379,1740112243565,-1180.77,0.00013945,2]
[353886380,1740112243575,-500.0,0.00013945,2]
[353886381,1740112243584,-500.0,0.00013945,2]
[353886382,1740112243594,-500.0,0.00013945,2]
[353886383,1740112243604,-3110.89,0.00013945,2]
[353886384,1740112243614,-1063.8,0.00013945,2]
[353886385,1740112243623,-500.0,0.00013945,2]
[353886386,1740112243633,-1000.0,0.00013945,2]
[353886387,1740112243643,-500.0,0.00013945,2]
[353886388,1740112243652,-579.65,0.00013945,2]
[353886389,1740112243661,-1893.75,0.00013945,2]
[353886390,1740112243671,-1155.97,0.00013945,2]
[353886391,1740112243680,-500.0,0.00013945,2]
[353886392,1740112243689,-500.0,0.00013945,2]
[353886393,1740112243698,-933.1,0.00013945,2]
[353886394,1740112243708,-950.54,0.00013945,2]
[353886395,1740112243718,-12368.39,0.00013945,2]
[353886396,1740112243728,-5183.19,0.00013945,2]
[353886397,1740112243737,-500.0,0.00013945,2]
[353886398,1740112243746,-29788.38,0.00013945,2]
[353886399,1740112243755,-915.53,0.00013945,2]
[353886400,1740112243765,-712.21,0.00013945,2]
[353886401,1740112243774,-2828.99,0.00013945,2]
[353886402,1740112243786,-1498.22,0.00013945,2]
[353886403,1740112243796,-1569.7,0.00013945,2]
[353886404,1740112243805,-1107.5,0.00013945,2]
[353886405,1740112243814,-500.0,0.00013945,2]
[353886406,1740112243826,-500.0,0.00013945,2]
[353886407,1740112243835,-3081.86,0.00013945,2]
[353886408,1740112243845,-1013.92,0.00013945,2]
[353886409,1740112243854,-500.0,0.00013945,2]
[353886410,1740112243865,-500.0,0.00013945,2]
[353886411,1740112243875,-553.77,0.00013945,2]
[353886412,1740112243884,-838.68,0.00013945,2]
[353886413,1740112243894,-500.0,0.00013945,2]
[353886414,1740112243903,-500.0,0.00013945,2]
[353886415,1740112243912,-702.91,0.00013945,2]
[353886416,1740112243922,-1636.13,0.00013945,2]
[353886417,1740112243932,-518.65,0.00013945,2]
[353886418,1740112243942,-500.0,0.00013945,2]
[353886419,1740112243951,-1616.94,0.00013945,2]
[353886420,1740112243960,-621.21,0.00013945,2]
[353886421,1740112243970,-1891.55,0.00013945,2]
[353886422,1740112243979,-2200.03,0.00013945,2]
[353886423,1740112243989,-500.0,0.00013945,2]
[353886424,1740112243998,-584.08,0.00013945,2]
[353886425,1740112244007,-500.0,0.00013945,2]
[353886426,1740112244017,-1463.98,0.00013945,2]
[353886427,1740112244026,-4734.85,0.00013945,2]
[353886428,1740112244035,-500.0,0.00013945,2]
[353886429,1740112244045,-500.0,0.00013945,2]
[353886430,1740112244054,-709.19,0.00013945,2]
[353886431,1740112244063,-500.0,0.00013945,2]
[353886432,1740112244073,-500.0,0.00013945,2]
[353886433,1740112244083,-500.0,0.00013945,2]
[353886434,1740112244092,-500.0,0.00013945,2]
[353886435,1740112244106,-1788.15,0.00013945,2]
[353886436,1740112244115,-500.0,0.00013945,2]
[353886437,1740112244124,-14987.05,0.00013945,2]
[353886438,1740112244134,-500.0,0.00013945,2]
[353886439,1740112244143,-500.0,0.00013945,2]
[353886440,1740112244153,-500.0,0.00013945,2]
[353886441,1740112244162,-500.0,0.00013945,2]
[353886442,1740112244171,-500.0,0.00013972,2]
[353886443,1740112244180,-1002.17246199,0.00013988,2]
[353886444,1740112244189,-151.0,0.00014,2]
[353886445,1740112244199,-151.0,0.00014,2]
[353886446,1740112244209,-151.0,0.00014,2]
[353886447,1740112244218,-2926.33189115,0.00014009,2]
[353886448,1740112244228,-3000.0,0.00014009,2]
[353886449,1740112244238,-203.08957342,0.00014009,2]
[353886450,1740112244247,-203.08,0.00014009,2]
[353886451,1740112244258,-280.23128327,0.00014009,2]
[353886452,1740112244268,-280.23128327,0.00014009,2]
[353886453,1740112244276,-280.23128327,0.00014009,2]
[353886454,1740112244285,-280.23128327,0.00014009,2]
[353886455,1740112244295,-280.23128327,0.00014009,2]
[353886456,1740112244309,-280.23128327,0.00014009,2]
[353886457,1740112244324,-280.23128327,0.00014009,2]
[353886458,1740112244334,-280.23128327,0.00014009,2]
[353886459,1740112244344,-280.23128327,0.00014009,2]
[353886460,1740112244353,-280.23128327,0.00014009,2]
[353886461,1740112244362,-280.23128327,0.00014009,2]
[353886462,1740112244371,-280.23128327,0.00014009,2]
[353886463,1740112244381,-280.23128327,0.00014009,2]
[353886464,1740112244390,-280.23128327,0.00014009,2]
[353886465,1740112244400,-280.23128327,0.00014009,2]
[353886466,1740112244409,-280.23128327,0.00014009,2]
[353886467,1740112244419,-280.23128327,0.00014009,2]
[353886468,1740112244428,-280.23128327,0.00014009,2]
[353886469,1740112244437,-280.23128327,0.00014009,2]
[353886470,1740112244446,-280.23,0.00014009,2]
[353886471,1740112244455,-370.84185264,0.00014009,2]
[353886472,1740112244464,-370.84185264,0.00014009,2]
[353886473,1740112244473,-370.84185264,0.00014009,2]
[353886474,1740112244482,-370.84185264,0.00014009,2]
[353886475,1740112244492,-370.84185264,0.00014009,2]
[353886476,1740112244500,-370.84185264,0.00014009,2]
[353886477,1740112244509,-370.84185264,0.00014009,2]
[353886478,1740112244519,-370.84185264,0.00014009,2]
[353886479,1740112244528,-370.84185264,0.00014009,2]
[353886480,1740112244537,-370.84185264,0.00014009,2]
[353886481,1740112244547,-370.84185264,0.00014009,2]
[353886482,1740112244557,-370.84185264,0.00014009,2]
[353886483,1740112244566,-370.84185264,0.00014009,2]
[353886484,1740112244576,-370.84185264,0.00014009,2]
[353886485,1740112244585,-370.84185264,0.00014009,2]
[353886486,1740112244595,-370.84185264,0.00014009,2]
[353886487,1740112244605,-370.84185264,0.00014009,2]
[353886488,1740112244614,-370.84185264,0.00014009,2]
[353886489,1740112244624,-370.84185264,0.00014009,2]
[353886490,1740112244633,-370.84,0.00014009,2]
[353886491,1740112244642,-366.07919931,0.00014027,2]
[353886492,1740112244652,-500.0,0.00014027,2]
[353886493,1740112244661,-500.0,0.00014027,2]
[353886494,1740112244671,-1333.54,0.00014027,2]
[353886495,1740112244680,-500.0,0.00014027,2]
[353886496,1740112244690,-500.0,0.00014027,2]
[353886497,1740112244699,-500.0,0.00014027,2]
[353886498,1740112244708,-640.02,0.00014027,2]
[353886499,1740112244718,-500.0,0.00014027,2]
[353886500,1740112244727,-812.91,0.00014027,2]
[353886501,1740112244737,-500.0,0.00014027,2]
[353886502,1740112244746,-500.0,0.00014027,2]
[353886503,1740112244755,-500.0,0.00014027,2]
[353886504,1740112244765,-332.35525799,0.00014027,2]
[353886505,1740112244775,-330.96217767,0.00014027,2]
[353886506,1740112244787,-500.0,0.00014027,2]
[353886507,1740112244796,-580.29,0.00014027,2]
[353886508,1740112244806,-500.0,0.00014027,2]
[353886509,1740112244815,-500.0,0.00014027,2]
[353886510,1740112244826,-974.15,0.00014027,2]
[353886511,1740112244835,-500.0,0.00014027,2]
[353886512,1740112244845,-500.0,0.00014027,2]
[353886513,1740112244857,-500.0,0.00014027,2]
[353886514,1740112244867,-500.0,0.00014027,2]
[353886515,1740112244876,-950.86,0.00014027,2]
[353886516,1740112244886,-500.0,0.00014027,2]
[353886517,1740112244895,-500.0,0.00014027,2]
[353886518,1740112244904,-718.47,0.00014027,2]
[353886519,1740112244914,-596.26,0.00014027,2]
[353886520,1740112244923,-500.0,0.00014027,2]
[353886521,1740112244933,-640.49,0.00014027,2]
[353886522,1740112244943,-500.0,0.00014027,2]
[353886523,1740112244953,-500.0,0.00014027,2]
[353886524,1740112244963,-500.0,0.00014027,2]
[353886525,1740112244972,-500.0,0.00014027,2]
[353886526,1740112244982,-500.0,0.00014027,2]
[353886527,1740112244991,-500.0,0.00014027,2]
[353886528,1740112245001,-500.0,0.00014027,2]
[353886529,1740112245012,-436.49850278,0.00014027,2]
[353886530,1740112245022,-500.0,0.00014027,2]
[353886531,1740112245032,-6912.66,0.00014027,2]
[353886532,1740112245042,-598.64,0.00014027,2]
[353886533,1740112245052,-2126.12,0.00014027,2]
[353886534,1740112245062,-2057.23,0.00014027,2]
[353886535,1740112245071,-1180.77,0.00014027,2]
[353886536,1740112245081,-500.0,0.00014027,2]
[353886537,1740112245090,-500.0,0.00014027,2]
[353886538,1740112245100,-500.0,0.00014027,2]
[353886539,1740112245110,-3110.89,0.00014027,2]
[353886540,1740112245120,-1063.8,0.00014027,2]
[353886541,1740112245130,-500.0,0.00014027,2]
[353886542,1740112245140,-1000.0,0.00014027,2]
[353886543,1740112245149,-500.0,0.00014027,2]
[353886544,1740112245159,-579.65,0.00014027,2]
[353886545,1740112245169,-1893.75,0.00014027,2]
[353886546,1740112245179,-1155.97,0.00014027,2]
[353886547,1740112245189,-500.0,0.00014027,2]
[353886548,1740112245199,-500.0,0.00014027,2]
[353886549,1740112245209,-933.1,0.00014027,2]
[353886550,1740112245218,-950.54,0.00014027,2]
[353886551,1740112245228,-12368.39,0.00014027,2]
[353886553,1740112245238,-5183.19,0.00014027,2]
[353886554,1740112245247,-500.0,0.00014027,2]
[353886555,1740112245257,-29788.38,0.00014027,2]
[353886556,1740112245267,-915.53,0.00014027,2]
[353886557,1740112245276,-712.21,0.00014027,2]
[353886558,1740112245286,-2828.99,0.00014027,2]
[353886559,1740112245296,-1498.22,0.00014027,2]
[353886560,1740112245305,-1569.7,0.00014027,2]
[353886561,1740112245315,-1107.5,0.00014027,2]
[353886562,1740112245324,-500.0,0.00014027,2]
[353886563,1740112245333,-500.0,0.00014027,2]
[353886564,1740112245342,-3081.86,0.00014027,2]
[353886565,1740112245352,-1013.92,0.00014027,2]
[353886566,1740112245361,-500.0,0.00014027,2]
[353886567,1740112245373,-500.0,0.00014027,2]
[353886568,1740112245383,-553.77,0.00014027,2]
[353886569,1740112245392,-838.68,0.00014027,2]
[353886570,1740112245402,-500.0,0.00014027,2]
[353886571,1740112245411,-500.0,0.00014027,2]
[353886572,1740112245420,-702.91,0.00014027,2]
[353886573,1740112245430,-1636.13,0.00014027,2]
[353886574,1740112245439,-518.65,0.00014027,2]
[353886575,1740112245448,-500.0,0.00014027,2]
[353886576,1740112245458,-1616.94,0.00014027,2]
[353886577,1740112245468,-621.21,0.00014027,2]
[353886578,1740112245478,-1891.55,0.00014027,2]
[353886579,1740112245488,-2200.03,0.00014027,2]
[353886580,1740112245498,-500.0,0.00014027,2]
[353886582,1740112245508,-584.08,0.00014027,2]
[353886584,1740112245517,-500.0,0.00014027,2]
[353886585,1740112245527,-1463.98,0.00014027,2]
[353886586,1740112245536,-4734.85,0.00014027,2]
[353886587,1740112245546,-500.0,0.00014027,2]
[353886588,1740112245556,-500.0,0.00014027,2]
[353886590,1740112245565,-709.19,0.00014027,2]
[353886591,1740112245574,-500.0,0.00014027,2]
[353886592,1740112245583,-500.0,0.00014027,2]
[353886593,1740112245593,-500.0,0.00014027,2]
[353886594,1740112245602,-500.0,0.00014027,2]
[353886596,1740112245693,-1788.15,0.00014027,2]
[353886597,1740112245712,-500.0,0.00014027,2]
[353886598,1740112245722,-14987.05,0.00014027,2]
[353886599,1740112245731,-500.0,0.00014027,2]
[353886600,1740112245741,-500.0,0.00014027,2]
[353886601,1740112245750,-500.0,0.00014027,2]
[353886602,1740112245759,-500.0,0.00014027,2]
[353886603,1740112245769,-500.0,0.00014064,2]
[353886604,1740112245783,-500.0,0.00014064,2]
[353886605,1740112245792,-151.0,0.000141,2]
[353886606,1740112245801,-151.0,0.000141,2]
[353886607,1740112245811,-500.0,0.00014109,2]
[353886608,1740112245822,-500.0,0.00014109,2]
[353886609,1740112245831,-1333.54,0.00014109,2]
[353886610,1740112245841,-500.0,0.00014109,2]
[353886611,1740112245850,-500.0,0.00014109,2]
[353886612,1740112245862,-500.0,0.00014109,2]
[353886613,1740112245871,-640.02,0.00014109,2]
[353886614,1740112245880,-500.0,0.00014109,2]
[353886615,1740112245890,-812.91,0.00014109,2]
[353886616,1740112245899,-500.0,0.00014109,2]
[353886617,1740112245908,-500.0,0.00014109,2]
[353886618,1740112245918,-500.0,0.00014109,2]
[353886619,1740112245927,-500.0,0.00014109,2]
[353886620,1740112245937,-580.29,0.00014109,2]
[353886621,1740112245946,-500.0,0.00014109,2]
[353886622,1740112245956,-500.0,0.00014109,2]
[353886623,1740112245966,-974.15,0.00014109,2]
[353886624,1740112245975,-500.0,0.00014109,2]
[353886625,1740112245985,-500.0,0.00014109,2]
[353886626,1740112245994,-500.0,0.00014109,2]
[353886627,1740112246004,-500.0,0.00014109,2]
[353886628,1740112246013,-950.86,0.00014109,2]
[353886629,1740112246023,-500.0,0.00014109,2]
[353886630,1740112246033,-500.0,0.00014109,2]
[353886631,1740112246043,-718.47,0.00014109,2]
[353886632,1740112246053,-596.26,0.00014109,2]
[353886633,1740112246063,-500.0,0.00014109,2]
[353886634,1740112246072,-640.49,0.00014109,2]
[353886635,1740112246082,-500.0,0.00014109,2]
[353886636,1740112246092,-500.0,0.00014109,2]
[353886637,1740112246101,-500.0,0.00014109,2]
[353886638,1740112246111,-500.0,0.00014109,2]
[353886639,1740112246124,-500.0,0.00014109,2]
[353886640,1740112246133,-500.0,0.00014109,2]
[353886641,1740112246143,-500.0,0.00014109,2]
[353886642,1740112246152,-500.0,0.00014109,2]
[353886643,1740112246162,-6912.66,0.00014109,2]
[353886644,1740112246171,-598.64,0.00014109,2]
[353886645,1740112246180,-2126.12,0.00014109,2]
[353886646,1740112246190,-2057.23,0.00014109,2]
[353886647,1740112246200,-1180.77,0.00014109,2]
[353886648,1740112246210,-500.0,0.00014109,2]
[353886649,1740112246219,-500.0,0.00014109,2]
[353886650,1740112246228,-500.0,0.00014109,2]
[353886651,1740112246238,-3110.89,0.00014109,2]
[353886652,1740112246248,-1063.8,0.00014109,2]
[353886653,1740112246257,-500.0,0.00014109,2]
[353886654,1740112246266,-500.0,0.00014109,2]
[353886655,1740112246276,-361.98425505,0.00014109,2]
[353886656,1740112246285,-579.65,0.00014109,2]
[353886657,1740112246294,-1893.75,0.00014109,2]